bitfinex-derivatives/quotes_SOLF0:USTF0_20250130
["timestamp","ask_amount","ask_price","bid_price","bid_amount"]
[1738216873052,0.02840441,239.94,239.9,4.1981398]
[1738216873255,2.86,240.05,239.9,0.0296398]
[1738216873551,2.86,240.05,239.88,1.3365]
[1738216873753,2.86,240.05,239.91,4.1683]
[1738216874151,2.86,240.05,239.88,1.3365]
[1738216874553,4.1672,239.98,239.94,0.02783866]
[1738216874753,0.02916213,239.99,239.94,0.02783866]
[1738216875253,4.1676,239.96,239.94,0.02783866]
[1738216877049,0.02916213,239.99,239.94,0.02783866]
[1738216877050,4.1677,239.95,239.94,0.02783866]
[1738216877250,17.95275898,239.97,239.77,2.7389]
[1738216877755,17.95275898,239.97,239.82,4.1698]
[1738216878248,4.1685,239.91,239.87,0.02816719]
[1738216878452,0.02849187,239.92,239.87,0.02816719]
[1738216878955,4.1689,239.88,239.87,0.02816719]
[1738216883967,0.02849187,239.92,239.73,79.57792327]
[1738216884153,20.79275898,239.93,239.73,79.57792327]
[1738216884661,4.1698,239.83,239.77,4.1708]
[1738216884853,4.1698,239.83,239.73,79.57792327]
[1738216885059,0.03058852,239.82,239.78,0.02913961]
[1738216886660,0.03058852,239.82,239.81,4.1701]
[1738216886964,4.1691,239.87,239.79,11.26151917]
[1738216887962,0.02880765,239.85,239.79,11.26151917]
[1738216888164,0.02880765,239.85,239.82,4.1699]
[1738216889567,11.26151917,239.94,239.86,4.1692]
[1738216890267,4.1686,239.9,239.86,4.1692]
[1738216890561,4.1686,239.9,239.86,4.19830051]
[1738216890768,4.19483128,239.9,239.86,4.19830051]
[1738216891262,1.4002,240.09,239.86,4.19830051]
[1738216891263,11.26151917,240.0,239.86,0.02910051]
[1738216891566,4.1678,239.95,239.86,1.4168]
[1738216892464,0.02997952,239.93,239.88,0.02811888]
[1738216892666,0.02997952,239.93,239.9,4.1685]
[1738216892875,109.97305608,240.12,239.89,18.00798516]
[1738216893065,109.97305608,240.12,239.94,18.00798516]
[1738216893462,109.97305608,240.12,239.99,4.1669]
[1738216893763,109.97305608,240.12,239.94,18.00798516]
[1738216894070,4.19325334,240.08,240.03,0.0289754]
[1738216894670,0.02775334,240.08,240.03,0.0289754]
[1738216895972,4.1657,240.07,240.03,0.0289754]
[1738216896173,0.02775334,240.08,240.03,0.0289754]
[1738216898075,4.19325334,240.08,240.03,0.0289754]
[1738216898774,4.1656,240.07,240.03,0.0289754]
[1738216901379,4.1658,240.06,240.03,0.0289754]
[1738216902378,4.1661,240.04,240.03,0.0289754]
[1738216905780,4.1661,240.04,239.95,1.3328]
[1738216905781,18.0357385,240.08,239.9,9.58507458]
[1738216906078,18.00798516,240.08,239.9,9.58507458]
[1738216906282,1.3904,240.07,239.9,9.58507458]
[1738216907076,1.3904,240.07,239.96,4.19737659]
[1738216907077,0.02980378,240.01,239.96,4.19737659]
[1738216907777,4.1668,240.0,239.96,0.02987659]
[1738216909784,4.1673,239.97,239.96,0.02987659]
[1738216912184,4.1669,240.0,239.96,0.02987659]
[1738216912384,0.02980378,240.01,239.96,0.02987659]
[1738216914187,4.1668,240.0,239.96,0.02987659]
[1738216916085,0.02980378,240.01,239.96,0.02987659]
[1738216916282,4.167,239.99,239.96,0.02987659]
[1738216916783,4.1673,239.97,239.96,0.02987659]
[1738216921687,0.02980378,240.01,239.96,0.02987659]
[1738216923986,4.1673,239.97,239.96,0.02987659]
[1738216927498,4.1673,239.97,239.87,2.85659557]
[1738216928297,11.24900583,240.01,239.87,2.85659557]
[1738216928494,4.1676,239.96,239.9,4.1685]
[1738216928793,0.0281994,239.96,239.92,0.03118811]
[1738216932302,4.1677,239.95,239.92,0.03118811]
[1738216935005,4.1679,239.94,239.92,0.03118811]
[1738216938008,4.168,239.93,239.92,0.03118811]
[1738216938305,0.0281994,239.96,239.92,0.03118811]
[1738216938909,0.0281994,239.96,239.92,4.19928811]
[1738216940608,0.0281994,239.96,239.93,4.168]
[1738216941803,4.1956994,239.96,239.93,4.168]
[1738216941999,0.0281994,239.96,239.92,0.03118811]
[1738216942508,4.1679,239.95,239.92,0.03118811]
[1738216942806,0.0281994,239.96,239.92,0.03118811]
[1738216943109,4.168,239.94,239.92,0.03118811]
[1738216943907,4.168,239.93,239.92,0.03118811]
[1738216948508,11.37516382,239.93,239.92,0.03118811]
[1738216948909,11.37516382,239.93,239.83,11.37686382]
[1738216948910,7.20716382,239.93,239.83,6.02042366]
[1738216949111,4.169,239.88,239.83,1.85072366]
[1738216950210,4.1691,239.87,239.83,1.87936551]
[1738216950407,0.03173341,239.88,239.83,6.04906551]
[1738216950607,0.03173341,239.88,239.83,9.37906551]
[1738216951417,4.20083341,239.88,239.83,9.37906551]
[1738216951710,0.03173341,239.88,239.83,9.37906551]
[1738216952217,4.1692,239.87,239.83,5.20936551]
[1738216952813,4.1693,239.86,239.83,5.20936551]
[1738216953112,0.03173341,239.88,239.83,5.20936551]
[1738216953313,4.1695,239.85,239.83,5.20936551]
[1738216953618,0.03173341,239.88,239.83,3.35864185]
[1738216953808,7.20716382,239.87,239.83,3.35864185]
[1738216954013,4.1696,239.84,239.83,3.35864185]
[1738216955407,0.03173341,239.88,239.83,3.35864185]
[1738216955608,0.03173341,239.88,239.87,7.20716382]
[1738216956919,0.03173341,239.88,239.87,11.37626382]
[1738216958513,0.03173341,239.88,239.87,4.1691]
[1738216961418,0.03173341,239.88,239.84,11.25663705]
[1738216961618,0.03173341,239.88,239.85,4.1694]
[1738216962716,0.03173341,239.88,239.85,7.4994]
[1738216964824,0.03173341,239.88,239.85,3.33]
[1738216965017,0.03173341,239.88,239.86,4.1692]
[1738216966019,0.03173341,239.88,239.85,3.33]
[1738216967321,4.20063341,239.88,239.85,3.33]
[1738216968122,4.1691,239.87,239.85,3.33]
[1738216969826,4.1692,239.86,239.85,3.33]
[1738216970324,4.1692,239.86,239.78,4.82608685]
[1738216970821,0.03173341,239.88,239.78,4.82608685]
[1738216971026,4.1696,239.84,239.77,1.4]
[1738216971431,0.03118526,239.83,239.78,0.03095407]
[1738216971925,0.03118526,239.83,239.8,4.1703]
[1738216972529,4.17,239.82,239.78,4.20145407]
[1738216973330,0.03118526,239.83,239.78,0.03095407]
[1738216973629,4.1705,239.79,239.78,0.03095407]
[1738216975632,4.17,239.82,239.78,0.03095407]
[1738216976633,0.03118526,239.83,239.8,4.1702]
[1738216976834,0.03118526,239.83,239.78,0.03095407]
[1738216977429,4.20098526,239.83,239.79,4.1704]
[1738216977634,0.03118526,239.83,239.78,0.03095407]
[1738216978135,0.03118526,239.83,239.8,4.1702]
[1738216979133,0.03118526,239.83,239.78,4.20155407]
[1738216980137,4.17,239.82,239.78,4.20155407]
[1738216980437,0.03118526,239.83,239.78,0.03095407]
[1738216980635,7.24276732,239.83,239.78,0.03095407]
[1738216980837,7.21158206,239.81,239.78,0.03095407]
[1738216982240,7.21158206,239.79,239.77,3.33]
[1738216982643,7.21158206,239.82,239.77,3.33]
[1738216982834,4.1705,239.8,239.77,3.33]
[1738216983240,7.21158206,239.82,239.77,3.33]
[1738216983543,7.21158206,239.8,239.77,3.33]
[1738216984137,4.1706,239.78,239.77,3.33]
[1738216984345,11.38218206,239.78,239.77,3.33]
[1738216984737,4.1708,239.77,239.76,0.02289047]
[1738216985736,7.21158206,239.8,239.76,0.02289047]
[1738216985942,0.03118526,239.83,239.76,9.04447253]
[1738216986343,0.03118526,239.83,239.76,13.21527253]
[1738216986745,7.21158206,239.82,239.76,1.83289047]
[1738216987045,0.03118526,239.83,239.76,1.83289047]
[1738216987046,7.21158206,239.8,239.76,1.83289047]
[1738216987241,7.21158206,239.78,239.76,1.83289047]
[1738216989248,4.1708,239.77,239.76,1.83289047]
[1738216990344,4.1714,239.74,239.68,7.21158206]
[1738216990746,4.1714,239.74,239.69,4.1721]
[1738216991443,4.20173129,239.74,239.69,4.1721]
[1738216991648,4.1718,239.72,239.67,4.1725]
[1738216991850,7.21158206,239.73,239.67,4.1725]
[1738216992345,7.21158206,239.73,239.66,7.21158206]
[1738216993051,4.1722,239.7,239.66,7.21158206]
[1738216994152,4.1722,239.7,239.66,11.38428206]
[1738216994652,4.20173129,239.74,239.69,4.1721]
[1738216994851,4.20173129,239.74,239.68,7.21158206]
[1738216995543,0.03033129,239.74,239.72,7.21158206]
[1738216997252,0.03033129,239.74,239.72,11.38318206]
[1738216997754,0.03033129,239.74,239.72,7.21158206]
[1738216998753,0.03033129,239.74,239.67,7.21158206]
[1738216999049,7.21158206,239.73,239.65,9.95098206]
[1738216999653,7.21158206,239.71,239.65,7.21158206]
[1738216999847,7.21158206,239.71,239.63,8.57148206]
[1738217000755,7.21158206,239.69,239.63,7.21158206]
[1738217000955,4.1728,239.66,239.63,7.21158206]
[1738217001156,4.1728,239.66,239.61,7.21158206]
[1738217001452,0.02833626,239.68,239.63,7.21158206]
[1738217002754,0.02833626,239.68,239.64,4.1729]
[1738217002955,0.02833626,239.68,239.57,1.3315]
[1738217002956,0.02833626,239.68,239.65,7.21158206]
[1738217003157,0.02833626,239.68,239.67,7.21158206]
[1738217003752,0.02833626,239.68,239.67,11.38408206]
[1738217007160,4.1712,239.75,239.71,4.1719]
[1738217008159,7.21158206,239.77,239.69,7.21158206]
[1738217008362,0.02679414,239.75,239.73,7.21158206]
[1738217008560,7.21158206,239.83,239.73,7.21158206]
[1738217008759,7.21158206,239.83,239.76,7.21158206]
[1738217009361,0.02816577,239.82,239.77,0.02695481]
[1738217009564,0.02816577,239.82,239.78,7.21158206]
[1738217009860,0.02816577,239.82,239.8,7.21158206]
[1738217010450,0.02816577,239.82,239.77,0.02695481]
[1738217010863,11.38178206,239.81,239.77,0.02695481]
[1738217011558,4.1702,239.81,239.77,0.02695481]
[1738217011758,0.02816577,239.82,239.77,0.02695481]
[1738217011961,4.19816577,239.82,239.77,4.19775481]
[1738217013161,0.02816577,239.82,239.8,4.1701]
[1738217013362,0.02816577,239.82,239.78,7.21158206]
[1738217013757,0.02816577,239.82,239.8,7.21158206]
[1738217013963,0.02816577,239.82,239.81,4.1701]
[1738217015957,0.02816577,239.82,239.79,4.1703]
[1738217016257,0.02816577,239.82,239.78,2.7732]
[1738217016563,0.02816577,239.82,239.79,4.1704]
[1738217017362,0.02816577,239.82,239.8,4.1702]
[1738217018060,0.02816577,239.82,239.78,7.21158206]
[1738217018364,0.02816577,239.82,239.81,4.1701]
[1738217020464,0.02816577,239.82,239.8,4.1703]
[1738217020668,0.02816577,239.82,239.78,7.21158206]
[1738217021365,0.02816577,239.82,239.79,4.1704]
[1738217021667,0.02816577,239.82,239.78,7.21158206]
[1738217022158,0.02816577,239.82,239.79,4.1704]
[1738217022363,0.02816577,239.82,239.78,7.21158206]
[1738217022564,0.02816577,239.82,239.8,7.21158206]
[1738217023066,0.02816577,239.82,239.81,4.1701]
[1738217023769,11.38028206,239.89,239.85,4.1694]
[1738217024266,7.21158206,239.89,239.83,7.21158206]
[1738217024469,4.1689,239.88,239.83,7.21158206]
[1738217024861,4.19926992,239.88,239.83,7.24147365]
[1738217025470,4.19926992,239.88,239.83,0.02989159]
[1738217026069,4.19926992,239.88,239.84,4.1696]
[1738217027468,0.03036992,239.88,239.85,4.1694]
[1738217028169,0.03036992,239.88,239.86,4.1691]
[1738217028473,0.03036992,239.88,239.85,7.21158206]
[1738217029173,0.03036992,239.88,239.87,11.38068206]
[1738217029570,0.03036992,239.88,239.87,4.1691]
[1738217029766,0.03036992,239.88,239.86,4.1692]
[1738217030072,0.03036992,239.88,239.83,0.02989159]
[1738217030466,0.03036992,239.88,239.85,4.1692]
[1738217031068,0.03036992,239.88,239.83,7.24147365]
[1738217031269,7.21158206,239.87,239.83,0.02989159]
[1738217032374,0.03036992,239.88,239.83,7.24147365]
[1738217032673,0.03036992,239.88,239.85,7.21158206]
[1738217033079,0.03036992,239.88,239.87,4.1691]
[1738217033568,0.03036992,239.88,239.87,11.38068206]
[1738217044778,0.03036992,239.88,239.85,7.21158206]
[1738217044977,0.03036992,239.88,239.83,7.24147365]
[1738217045176,0.03036992,239.88,239.85,7.21158206]
[1738217046081,0.03036992,239.88,239.85,11.38088206]
[1738217049079,0.03036992,239.88,239.87,7.21158206]
[1738217049274,4.1672,239.99,239.93,4.1679]
[1738217049478,8.56038206,240.05,239.98,7.21158206]
[1738217049884,7.21158206,240.01,239.94,7.21158206]
[1738217050378,0.0278709,240.0,239.95,0.031205]
[1738217050578,7.21158206,239.99,239.95,0.031205]
[1738217052080,0.0278709,240.0,239.95,0.031205]
[1738217052479,7.21158206,239.99,239.95,0.031205]
[1738217053174,4.1675,239.96,239.95,0.031205]
[1738217055081,4.1674,239.97,239.95,0.031205]
[1738217055278,0.0278709,240.0,239.95,0.031205]
[1738217055481,0.0278709,240.0,239.96,7.21158206]
[1738217055685,4.1672,239.98,239.96,7.21158206]
[1738217055884,4.1672,239.98,239.95,0.031205]
[1738217056283,0.0278709,240.0,239.98,4.1671]
[1738217056485,0.0278709,240.0,239.99,7.21158206]
[1738217057986,7.21158206,240.12,239.99,7.21158206]
[1738217058187,7.21158206,240.12,240.05,7.21158206]
[1738217058391,7.21158206,240.1,240.03,7.21158206]
[1738217058694,7.21158206,240.06,239.99,7.21158206]
[1738217059392,4.1665,240.02,240.0,0.02846791]
[1738217060486,4.1663,240.04,240.0,0.02846791]
[1738217061186,0.02820364,240.05,240.01,7.21158206]
[1738217061986,0.02820364,240.05,240.0,0.02846791]
[1738217062187,7.21158206,240.04,240.0,0.02846791]
[1738217062886,4.1666,240.01,240.0,0.02846791]
[1738217069095,7.21158206,240.04,240.0,0.02846791]
[1738217069293,4.1665,240.02,240.0,0.02846791]
[1738217070296,4.1666,240.01,240.0,0.02846791]
[1738217071596,0.02820364,240.05,240.0,0.02846791]
[1738217071804,4.1662,240.04,240.0,0.02846791]
[1738217072803,4.1662,240.04,240.01,7.21158206]
[1738217073003,0.02820364,240.05,240.03,7.21158206]
[1738217074596,0.02820364,240.05,240.01,7.21158206]
[1738217075100,0.02820364,240.05,240.0,0.02846791]
[1738217076308,4.1663,240.03,240.0,0.02846791]
[1738217077004,0.02820364,240.05,240.01,7.21158206]
[1738217077210,0.02820364,240.05,240.01,11.37808206]
[1738217077613,0.02820364,240.05,240.03,7.21158206]
[1738217079411,4.19420364,240.05,240.03,7.21158206]
[1738217079910,4.19420364,240.05,240.01,7.21158206]
[1738217082311,4.1661,240.04,240.01,7.21158206]
[1738217082812,0.02820364,240.05,240.02,4.1664]
[1738217083012,0.02820364,240.05,240.01,7.21158206]
[1738217083610,0.02820364,240.05,240.03,7.21158206]
[1738217088508,4.19420364,240.05,240.03,7.21158206]
[1738217091817,0.02820364,240.05,240.03,7.21158206]
[1738217092518,0.02820364,240.05,240.03,11.37788206]
[1738217093319,0.02820364,240.05,240.03,7.21158206]
[1738217096924,0.02820364,240.05,240.01,7.21158206]
[1738217097221,4.1665,240.03,240.01,7.21158206]
[1738217098121,0.02820364,240.05,240.01,7.21158206]
[1738217098318,0.02820364,240.05,240.03,7.21158206]
[1738217101522,0.02820364,240.05,240.03,11.37768206]
[1738217103028,0.02820364,240.05,240.03,7.21158206]
[1738217103631,0.02820364,240.05,240.03,11.37778206]
[1738217103829,0.02820364,240.05,240.03,7.21158206]
[1738217104530,0.02820364,240.05,240.04,4.1661]
[1738217107130,4.1647,240.13,240.03,7.21158206]
[1738217107432,4.1647,240.13,240.09,11.37678206]
[1738217107833,8.55258206,240.22,240.12,7.21158206]
[1738217108033,8.55258206,240.22,240.15,7.21158206]
[1738217108430,14.2251942,240.2,240.15,0.02786586]
[1738217110230,4.164,240.16,240.15,0.02786586]
[1738217111333,11.37558206,240.16,240.15,0.02786586]
[1738217111534,11.37558206,240.16,240.07,7.21158206]
[1738217111535,4.1651,240.1,240.07,7.21158206]
[1738217115438,0.03059361,240.11,240.09,7.21158206]
[1738217116041,0.03059361,240.11,240.1,4.1651]
[1738217118037,6.98179395,240.2,240.09,7.21158206]
[1738217118236,11.14519395,240.2,240.15,7.21158206]
[1738217118432,6.98179395,240.2,240.15,7.21158206]
[1738217119141,7.01102807,240.2,240.16,4.164]
[1738217119342,7.01102807,240.2,240.17,7.21158206]
[1738217119542,0.02923412,240.2,240.17,7.21158206]
[1738217120244,4.19253412,240.2,240.17,7.21158206]
[1738217120941,0.02923412,240.2,240.17,11.37538206]
[1738217121145,0.02923412,240.2,240.17,7.21158206]
[1738217122243,0.02923412,240.2,240.18,4.1637]
[1738217122450,0.02923412,240.2,240.17,7.21158206]
[1738217122840,0.02923412,240.2,240.19,7.21158206]
[1738217126345,4.19253412,240.2,240.19,7.21158206]
[1738217127752,4.1637,240.19,240.17,7.21158206]
[1738217128842,4.1637,240.18,240.17,7.21158206]
[1738217129740,4.1636,240.19,240.17,7.21158206]
[1738217132255,4.1639,240.17,240.15,7.23999791]
[1738217133451,4.1637,240.18,240.15,7.23999791]
[1738217135355,0.02923412,240.2,240.15,7.23999791]
[1738217135555,4.164,240.17,240.15,7.23999791]
[1738217137552,4.164,240.16,240.15,7.23999791]
[1738217142059,0.02923412,240.2,240.15,7.23999791]
[1738217142358,4.1639,240.17,240.15,7.23999791]
[1738217148173,4.19263412,240.2,240.15,11.40409791]
[1738217148374,4.19263412,240.2,240.19,7.21158206]
[1738217148673,0.02923412,240.2,240.17,7.21158206]
[1738217149872,0.02923412,240.2,240.15,7.23999791]
[1738217150075,4.1635,240.19,240.15,7.23999791]
[1738217150970,0.02923412,240.2,240.17,7.21158206]
[1738217152168,4.19263412,240.2,240.17,7.21158206]
[1738217152670,0.02923412,240.2,240.19,7.21158206]
[1738217160268,30.97298054,240.37,240.19,7.21158206]
[1738217160479,22.39539848,240.37,240.34,7.21158206]
[1738217160674,22.39539848,240.37,240.36,7.21158206]
[1738217160869,22.39539848,240.37,240.34,7.21158206]
[1738217161274,22.39539848,240.39,240.34,7.21158206]
[1738217161474,0.02660601,240.38,240.34,7.21158206]
[1738217162680,4.18690601,240.38,240.34,7.21158206]
[1738217162880,0.02660601,240.38,240.33,0.03076358]
[1738217163779,7.21158206,240.37,240.33,0.03076358]
[1738217164179,4.1608,240.35,240.33,0.03076358]
[1738217167279,11.37238206,240.35,240.33,0.03076358]
[1738217170281,4.1609,240.34,240.33,0.03076358]
[1738217170681,7.21158206,240.35,240.26,7.21158206]
[1738217170883,4.1617,240.3,240.26,7.21158206]
[1738217171077,4.1617,240.3,240.2,2.87]
[1738217171078,7.21158206,240.36,240.28,7.21158206]
[1738217171375,7.21158206,240.4,240.32,7.21158206]
[1738217171977,7.21158206,240.36,240.34,0.02752261]
[1738217172482,4.1607,240.35,240.34,0.02752261]
[1738217172980,7.24201247,240.38,240.34,0.02752261]
[1738217173480,0.03043041,240.38,240.34,7.23910467]
[1738217173984,7.21158206,240.35,240.34,0.02752261]
[1738217174187,7.21158206,240.35,240.24,7.21158206]
[1738217174479,7.21158206,240.28,240.22,7.21158206]
[1738217174678,4.1624,240.26,240.22,7.21158206]
[1738217174879,7.21158206,240.28,240.2,8.62018206]
[1738217175079,1.3881,240.34,240.16,8.54498206]
[1738217175278,7.21158206,240.2,240.13,1.3353]
[1738217175476,7.21158206,240.24,240.16,7.21158206]
[1738217175688,7.21158206,240.26,240.19,7.21158206]
[1738217175988,0.03031728,240.22,240.17,7.21158206]
[1738217176185,0.03031728,240.22,240.2,0.02629059]
[1738217176186,4.19341728,240.22,240.2,0.02629059]
[1738217176377,7.21158206,240.26,240.2,0.02629059]
[1738217176575,0.0296576,240.23,240.21,7.21158206]
[1738217176774,4.1623,240.27,240.21,7.21158206]
[1738217176975,4.1623,240.27,240.25,7.21158206]
[1738217177176,0.03144944,240.26,240.25,7.21158206]
[1738217177384,4.1619,240.29,240.25,7.21158206]
[1738217177683,0.02854043,240.28,240.25,7.21158206]
[1738217179683,0.02854043,240.28,240.23,7.24141863]
[1738217179980,4.19054043,240.28,240.23,7.24141863]
[1738217180887,0.02854043,240.28,240.25,7.21158206]
[1738217181485,0.02854043,240.28,240.27,7.21158206]
[1738217183188,0.02854043,240.28,240.27,11.37368206]
[1738217183682,0.02854043,240.28,240.27,7.21158206]
[1738217188792,0.02854043,240.28,240.27,11.37368206]
[1738217195702,7.24012249,240.28,240.23,4.19263657]
[1738217195890,0.02854043,240.28,240.23,11.40421863]
[1738217196390,4.19054043,240.28,240.23,11.40421863]
[1738217196589,0.02854043,240.28,240.23,11.40421863]
[1738217197000,0.02854043,240.28,240.25,7.21158206]
[1738217197191,0.02854043,240.28,240.27,7.21158206]
[1738217197596,0.02854043,240.28,240.27,11.37368206]
[1738217199503,7.21158206,240.4,240.33,4.1611]
[1738217199700,7.21158206,240.4,240.33,11.37268206]
[1738217200203,4.1596,240.42,240.35,7.21158206]
[1738217200597,0.02977201,240.41,240.36,0.02728554]
[1738217200802,0.02977201,240.41,240.24,4.1865]
[1738217200803,7.21158206,240.37,240.24,4.1865]
[1738217200996,7.21158206,240.29,240.22,7.21158206]
[1738217201501,1.4556,240.36,240.2,7.21158206]
[1738217201502,7.21158206,240.27,240.2,7.21158206]
[1738217201904,11.37348206,240.29,240.23,4.1628]
[1738217202103,11.37348206,240.29,240.22,7.21158206]
[1738217202104,0.03059531,240.26,240.22,7.21158206]
[1738217202601,7.21158206,240.43,240.25,7.21158206]
[1738217202804,7.21158206,240.43,240.35,7.21158206]
[1738217203304,7.21158206,240.41,240.35,7.21158206]
[1738217203701,0.03110159,240.4,240.36,0.02663623]
[1738217204203,4.19100159,240.4,240.36,0.02663623]
[1738217205203,4.19100159,240.4,240.37,7.21158206]
[1738217210808,4.1601,240.39,240.37,7.21158206]
[1738217213009,0.03110159,240.4,240.37,7.21158206]
[1738217215209,0.03110159,240.4,240.39,7.21158206]
[1738217221608,1.4556,240.49,240.39,7.21158206]
[1738217221812,1.4556,240.49,240.47,7.21158206]
[1738217222109,4.1585,240.48,240.47,7.21158206]
[1738217222301,1.4556,240.49,240.47,7.21158206]
[1738217222507,7.21158206,240.55,240.47,7.21158206]
[1738217222709,7.21158206,240.55,240.49,7.21158206]
[1738217222910,0.0316402,240.53,240.49,7.23836036]
[1738217224311,0.0316402,240.53,240.51,7.21158206]
[1738217227310,0.0316402,240.53,240.51,11.36948206]
[1738217227612,4.1563,240.61,240.55,4.1572]
[1738217227812,4.1563,240.61,240.6,7.21158206]
[1738217228013,7.21158206,240.68,240.6,7.21158206]
[1738217228609,0.02918319,240.66,240.61,0.02754589]
[1738217229009,0.02918319,240.66,240.65,7.21158206]
[1738217232312,0.02918319,240.66,240.63,7.21158206]
[1738217232515,0.02918319,240.66,240.61,7.23912795]
[1738217233317,4.156,240.63,240.61,7.23912795]
[1738217233813,4.156,240.63,240.61,0.02754589]
[1738217234520,7.24076525,240.66,240.61,0.02754589]
[1738217234720,4.1561,240.62,240.61,0.02754589]
[1738217236120,0.02918319,240.66,240.54,7.21158206]
[1738217236320,4.1571,240.56,240.52,7.21158206]
[1738217237015,7.21158206,240.6,240.52,7.21158206]
[1738217237221,4.1573,240.55,240.52,7.21158206]
[1738217237417,4.1573,240.55,240.54,0.03053069]
[1738217237720,4.1573,240.55,240.54,7.24211275]
[1738217238420,0.02965497,240.58,240.54,7.24211275]
[1738217238716,0.02965497,240.58,240.57,7.21158206]
[1738217239411,4.157,240.57,240.55,7.21158206]
[1738217239619,0.02965497,240.58,240.55,7.21158206]
[1738217239821,0.02965497,240.58,240.54,0.03053069]
[1738217240016,4.157,240.57,240.54,0.03053069]
[1738217240212,0.02965497,240.58,240.55,7.21158206]
[1738217241123,4.1572,240.56,240.55,7.21158206]
[1738217241422,0.02965497,240.58,240.54,0.03053069]
[1738217241723,4.1573,240.55,240.54,0.03053069]
[1738217245424,4.18645497,240.58,240.54,0.03053069]
[1738217245726,4.18645497,240.58,240.56,7.21158206]
[1738217247026,4.1569,240.57,240.56,7.21158206]
[1738217247719,0.02965497,240.58,240.56,7.21158206]
[1738217252022,0.02965497,240.58,240.57,4.1569]
[1738217252528,4.1557,240.65,240.61,4.1562]
[1738217252727,4.1557,240.65,240.61,11.36778206]
[1738217253232,4.1554,240.67,240.61,11.36778206]
[1738217253427,0.02975981,240.66,240.62,0.03202457]
[1738217254333,4.1557,240.64,240.62,0.03202457]
[1738217254531,7.24134187,240.66,240.62,0.03202457]
[1738217257132,4.1558,240.64,240.62,0.03202457]
[1738217258035,0.02975981,240.66,240.65,4.1555]
[1738217258234,1.3423,240.77,240.65,7.21158206]
[1738217258434,1.3423,240.77,240.55,4.1914]
[1738217258435,1.3423,240.77,240.71,7.21158206]
[1738217259130,4.154,240.75,240.71,7.21158206]
[1738217259335,4.154,240.75,240.72,0.03100213]
[1738217261327,4.154,240.74,240.72,0.03100213]
[1738217261532,0.02973301,240.76,240.72,0.03100213]
[1738217261938,4.1542,240.73,240.72,0.03100213]
[1738217267837,4.1542,240.73,240.72,2.13e-06]
[1738217268237,4.1548,240.7,240.57,11.18086505]
[1738217268542,11.18086505,240.69,240.57,11.18086505]
[1738217268842,4.1563,240.61,240.57,11.18086505]
[1738217269139,4.1563,240.61,240.56,4.1571]
[1738217269336,0.02980474,240.61,240.57,0.0292559]
[1738217269536,4.1567,240.59,240.57,0.0292559]
[1738217270541,0.02980474,240.61,240.57,0.0292559]
[1738217271042,4.1564,240.6,240.57,0.0292559]
[1738217272043,0.02980474,240.61,240.59,4.1566]
[1738217272840,0.02980474,240.61,240.57,15.36692095]
[1738217275048,0.02980474,240.61,240.59,4.1564]
[1738217276149,0.02980474,240.61,240.57,11.21012095]
[1738217276150,0.02980474,240.61,240.57,0.0292559]
[1738217277348,4.1564,240.6,240.57,0.0292559]
[1738217280458,4.18600474,240.61,240.57,0.0292559]
[1738217281956,4.18600474,240.61,240.57,4.1861559]
[1738217282560,4.18600474,240.61,240.57,11.34969703]
[1738217286457,0.02980474,240.61,240.58,4.1568]
[1738217287061,0.02980474,240.61,240.59,7.16354113]
[1738217289062,0.02980474,240.61,240.58,4.1566]
[1738217289665,0.02980474,240.61,240.57,7.19279703]
[1738217289963,4.18610474,240.61,240.57,7.19279703]
[1738217291062,4.18610474,240.61,240.57,11.34969703]
[1738217292967,4.1566,240.59,240.57,0.0292559]
[1738217293266,7.16354113,240.6,240.57,0.0292559]
[1738217293861,4.1567,240.59,240.57,0.0292559]
[1738217296066,0.02980474,240.61,240.58,7.16354113]
[1738217296268,0.02980474,240.61,240.6,7.16354113]
[1738217297168,0.02980474,240.61,240.6,11.31994113]
[1738217299969,4.1547,240.7,240.65,4.1555]
[1738217300162,4.1547,240.7,240.65,11.31904113]
[1738217300362,4.1544,240.72,240.67,7.16354113]
[1738217301266,4.18553864,240.72,240.67,7.18979925]
[1738217302367,0.03113864,240.72,240.69,11.31834113]
[1738217302566,0.03113864,240.72,240.71,7.16354113]
[1738217305473,0.03113864,240.72,240.69,11.31834113]
[1738217305669,0.03113864,240.72,240.69,7.16354113]
[1738217306072,4.18553864,240.72,240.69,7.16354113]
[1738217306376,4.18553864,240.72,240.67,0.02625812]
[1738217306377,7.16354113,240.7,240.67,0.02625812]
[1738217306773,7.16354113,240.68,240.67,0.02625812]
[1738217307173,11.31854113,240.68,240.67,0.02625812]
[1738217308380,4.155,240.68,240.67,0.02625812]
[1738217309483,11.31854113,240.68,240.67,0.02625812]
[1738217320900,11.31854113,240.68,240.67,5.812e-05]